Cogmind - Beta 13 @@@ ROGUE MODE // 2024.05.02 @ 05:48:36 Player: Wyvric Result: Self-destructed Performance ------------- Evolutions (2) 1000 Regions Visited (5) 1000 Robots Destroyed (16) 80 Value Destroyed (400) 400 Prototype IDs (0) 0 Alien Tech Used (0) 0 Bonus (60) 60 TOTAL SCORE: 2540 Bonus ------- Follower Combat Kills 60 Cogmind --------- Core Integrity 550/550 Matter 300/300 Energy 125/125 System Corruption 0% Temperature Cool (0) Movement Treading (240) Ox1 Location -8/Materials Parts ------- > --- POWER (1) -------- Light Ion Engine > --- PROPULSION (4) --- Light Treads Light Treads > --- UTILITY (4) ------ High-capacity Storage Unit Medium Armor Plating > --- WEAPON (2) ------- Assault Rifle Light Cannon > --- INVENTORY (20) --- Ion Engine Light Ion Engine Light Nuclear Core Reinforced Deuterium Engine Fission Core Light Fission Core Light Treads Light Treads Light Treads Light Treads Aluminum Leg Wheel Wheel Heat Sink High-capacity Matter Pod (200) High-capacity Matter Pod (200) Signal Interpreter Particle Gun Particle Gun Slug Cannon Peak State ------------ > --- POWER ------------ Ion Engine > --- PROPULSION ------- Aluminum Leg Aluminum Leg > --- UTILITY ---------- Improved Heat Sink High-capacity Storage Unit > --- WEAPON ----------- Light Cannon Slug Cannon > --- INVENTORY -------- Ion Engine Light Nuclear Core Reinforced Deuterium Engine Fission Core Light Fission Core Light Treads Light Treads Wheel Wheel High-capacity Matter Pod High-capacity Matter Pod Signal Interpreter Particle Gun Particle Gun Assault Rifle [Rating: 15] Favorites ----------- Power Ion Engine Engine Ion Engine Propulsion Aluminum Leg Treads Light Treads Leg Aluminum Leg Utility Improved Heat Sink Device Improved Heat Sink Storage High-capacity Storage Unit Protection Medium Armor Plating Weapon Assault Rifle Ballistic Gun Assault Rifle Ballistic Cannon Light Cannon Build | -11 -10 -10 -10 -9 -8 ------- Run | Yrd Mat Min Exi Min Mat Slots Evolved 4 | . . . . . 4 Power . | . . . . . . Propulsion 2 | . . . . . 2 Utility 2 | . . . . . 2 Weapon . | . . . . . . Parts Attached 20 | 6 1 5 1 7 . Power 2 | 1 . . . 1 . Engine 2 | 1 . . . 1 . Core . | . . . . . . Reactor . | . . . . . . Propulsion 7 | 2 . 2 . 3 . Treads 2 | . . . . 2 . Leg 5 | 2 . 2 . 1 . Wheel . | . . . . . . Hover . | . . . . . . Flight . | . . . . . . Utility 6 | 1 1 2 1 1 . Device 2 | . 1 1 . . . Storage 3 | 1 . 1 1 . . Processor . | . . . . . . Hackware . | . . . . . . Protection 1 | . . . . 1 . Artifact . | . . . . . . Weapon 5 | 2 . 1 . 2 . Energy Gun . | . . . . . . Energy Cannon . | . . . . . . Ballistic Gun 3 | 2 . . . 1 . Ballistic Cannon 2 | . . 1 . 1 . Launcher . | . . . . . . Special Weapon . | . . . . . . Impact Weapon . | . . . . . . Slashing Weapon . | . . . . . . Piercing Weapon . | . . . . . . Special Melee Weapon . | . . . . . . Unidentified Prototypes . | . . . . . . Parts Lost 4 | . . 3 . 1 . Power 1 | . . . . 1 . Propulsion 2 | . . 2 . . . Utility . | . . . . . . Weapon 1 | . . 1 . . . Highest Loss Streak 3 | . . 3 . 1 . To Critical Strikes . | . . . . . . Average Slot Usage (%) 99 | . 95 99 100 99 . Engine 13 | . 14 14 14 13 . Treads 7 | . . . . 20 . Leg 20 | . 28 27 28 7 . Device 12 | . 9 14 14 10 . Storage 14 | . 14 14 14 14 . Protection 1 | . . . . 3 . Ballistic Gun 14 | . 28 17 14 10 . Ballistic Cannon 13 | . . 10 14 17 . Naked Turns . | . . . . . . Heaviest Build 56 | 14 15 21 51 56 . Greatest Support 40 | 20 20 20 20 40 . Greatest Overweight (x) 3 | 3 . 2 2 2 . Average Overweight (x) . | . . . 1 1 . Largest Inventory Capacity 20 | 8 8 10 20 20 . Average Capacity 14 | 7 8 9 15 20 . Most Carried 20 | 8 8 10 15 20 . Average Carried 13 | 4 7 9 12 18 . Final Capacity 20 | 8 8 10 20 20 20 Final Carried 20 | 6 8 10 15 20 20 Class Distribution -------------------- 100% | Mutant Dominant Class ---------------- Mutant | -10/Materials Mutant | -10/Mines Mutant | -10/Exiles Mutant | -9/Mines Mutant | -8/Materials Resources | -11 -10 -10 -10 -9 -8 ----------- Run | Yrd Mat Min Exi Min Mat Matter Collected 820 | 163 111 201 20 325 . Remotely . | . . . . . . Salvage Created 490 | . 111 149 . 230 . Parts 32 | . 13 8 . 11 . Haulers Intercepted . | . . . . . . Recyclers Shooed . | . . . . . . Parts Field Recycled . | . . . . . . Retrieved Matter . | . . . . . . Parts Self-Destructed . | . . . . . . Prevented . | . . . . . . Kills | -11 -10 -10 -10 -9 -8 ------- Run | Yrd Mat Min Exi Min Mat Combat Hostiles Destroyed 15 | . 3 5 . 7 . Guns 11 | . 3 5 . 3 . Cannons 4 | . . . . 4 . Classes Destroyed 4 | . 1 1 . 2 . Recycler 1 | . . . . 1 . Swarmer 6 | . . 3 . 3 . Grunt 8 | . 3 2 . 3 . Brawler 1 | . . . . 1 . Best Kill Streak 3 | . 2 3 . 3 . Combat Bots Only 3 | . 2 3 . 3 . Max Kills in Single Turn 2 | . 1 1 . 2 . Gunslinging . | . . . . . . Exploded . | . . . . . . Melee . | . . . . . . Uniques/NPCs Destroyed . | . . . . . . Combat | -11 -10 -10 -10 -9 -8 -------- Run | Yrd Mat Min Exi Min Mat Hostile Shots Fired 106 | . 21 35 . 50 . Missed 34 | . 7 13 . 14 . Damage Taken 838 | . 178 246 . 414 . Core 130 | . 12 50 . 68 . Absorbed by Shields . | . . . . . . Core Remaining (%) 74 | 100 . . . 48 . Volleys Fired 57 | . 8 20 . 29 . Largest 2 | . 2 2 . 2 . Hottest 83 | . 40 55 . 83 . Shots Fired 113 | . 16 40 . 57 . Gun 64 | . 16 38 . 10 . Cannon 49 | . . 2 . 47 . Launcher . | . . . . . . Special . | . . . . . . Kinetic 113 | . 16 40 . 57 . Thermal . | . . . . . . Explosive . | . . . . . . Electromagnetic . | . . . . . . Robot Hit Streak 16 | . 9 16 . 4 . Robot Miss Streak 5 | . 1 2 . 5 . Penetration Max . | . . . . . . Secondary Targets . | . . . . . . Shots Hit Robots 68 | . 13 28 . 27 . Core Hits 26 | . 6 8 . 12 . Critical Kills . | . . . . . . Critical Parts Destroyed 1 | . . . . 1 . Critical Strikes 2 | . . . . 2 . Destroy 1 | . . . . 1 . Blast 1 | . . . . 1 . Melee Attacks . | . . . . . . Impact . | . . . . . . Slashing . | . . . . . . Piercing . | . . . . . . Sneak Attacks . | . . . . . . Combat Hostiles . | . . . . . . Follow-up Attacks . | . . . . . . Damage Inflicted 995 | . 164 353 . 478 . Guns 614 | . 164 353 . 97 . Cannons 370 | . . . . 370 . Explosions . | . . . . . . Melee . | . . . . . . Ramming 11 | . . . . 11 . Kinetic 984 | . 164 353 . 467 . Thermal . | . . . . . . Explosive . | . . . . . . Electromagnetic . | . . . . . . Impact . | . . . . . . Slashing . | . . . . . . Piercing . | . . . . . . Highest Corruption . | . . . . . . Average Corruption . | . . . . . . Corruption Purged . | . . . . . . Corruption Blocked . | . . . . . . Overload Shots . | . . . . . . Overflow Damage . | . . . . . . Projectiles . | . . . . . . Explosions . | . . . . . . Melee . | . . . . . . Knockbacks 7 | . . . . 7 . Impact . | . . . . . . Kinetic 6 | . . . . 6 . Secondary 1 | . . . . 1 . Self-Inflicted Damage . | . . . . . . Shots . | . . . . . . Rammed 2 | . . . . 2 . Targets Rammed 2 | . . . . 2 . Kicked . | . . . . . . Crushed . | . . . . . . Highest Temperature 5 | . . 2 . 5 . Average Temperature 2 | . . 2 . 2 . Received Heat Transfer 300 | . 93 102 . 105 . Siege Activations . | . . . . . . Robots Corrupted . | . . . . . . Combat Hostiles . | . . . . . . Parts Fried . | . . . . . . Impact Corruptions . | . . . . . . Robots Melted . | . . . . . . Combat Hostiles . | . . . . . . Parts Melted . | . . . . . . Heat Transferred . | . . . . . . Parts Sabotaged . | . . . . . . Parts Stolen . | . . . . . . Parts Stripped . | . . . . . . Power Chain Reactions . | . . . . . . Alert | -11 -10 -10 -10 -9 -8 ------- Run | Yrd Mat Min Exi Min Mat Peak Influence 192 | . 160 192 . 115 . Initial 62 | . . 62 . . . Average 36 | . 64 44 . 28 . Maximum Alert Level . | . . . . . . Low Security (%) 100 | 100 100 100 . 100 . Level 1 . | . . . . . . Level 2 . | . . . . . . Level 3 . | . . . . . . Level 4 . | . . . . . . Level 5 . | . . . . . . High Security . | . . . . . . Max Security . | . . . . . . Squads Dispatched 1 | . 1 . . . . Investigation 1 | . 1 . . . . Extermination . | . . . . . . Reinforcement . | . . . . . . Assault . | . . . . . . Garrison . | . . . . . . Intercept . | . . . . . . Searches Triggered . | . . . . . . Construction Impeded . | . . . . . . Haulers Reinforced . | . . . . . . Active Scanning Responses . | . . . . . . Cargo Convoy Interrupts . | . . . . . . Stealth | -11 -10 -10 -10 -9 -8 --------- Run | Yrd Mat Min Exi Min Mat Distress Signals 1 | . 1 . . . . Communications Jammed . | . . . . . . Distress Signals . | . . . . . . Times Spotted 27 | . 11 9 . 7 . Peak Tracking Total 6 | . 6 3 . 3 . Tactical Retreats 3 | . 1 2 . . . Traps | -11 -10 -10 -10 -9 -8 ------- Run | Yrd Mat Min Exi Min Mat Traps Triggered 1 | . 1 . . . . Indirectly . | . . . . . . Trap Hack Attempts . | . . . . . . Triggered . | . . . . . . Disarmed . | . . . . . . Reprogrammed . | . . . . . . Reused . | . . . . . . Traps Extracted . | . . . . . . Installed . | . . . . . . Triggered . | . . . . . . Machines | -11 -10 -10 -10 -9 -8 ---------- Run | Yrd Mat Min Exi Min Mat Machines Disabled . | . . . . . . Max in Single Turn . | . . . . . . Machines Repaired . | . . . . . . Machines Dismantled . | . . . . . . Machines Sabotaged . | . . . . . . Overloaded Fab Kills . | . . . . . . Hacking | -11 -10 -10 -10 -9 -8 --------- Run | Yrd Mat Min Exi Min Mat Machines Accessed 3 | . 3 . . . . Terminals 2 | . 2 . . . . Fabricators . | . . . . . . Repair Stations . | . . . . . . Recycling Units 1 | . 1 . . . . Scanalyzers . | . . . . . . Garrison Access . | . . . . . . Total Hacks 5 | . 5 . . . . Successful 1 | . 1 . . . . Failed 4 | . 4 . . . . Catastrophic 2 | . 2 . . . . Database Lockouts . | . . . . . . Manual 4 | . 4 . . . . Terminals 4 | . 4 . . . . Fabricators . | . . . . . . Repair Stations . | . . . . . . Recycling Units 1 | . 1 . . . . Scanalyzers . | . . . . . . Garrison Access . | . . . . . . Terminal Hacks . | . . . . . . Fabricator Hacks . | . . . . . . Repair Station Hacks . | . . . . . . Recycling Unit Hacks . | . . . . . . Scanalyzer . | . . . . . . Garrison Access Hacks . | . . . . . . Unauthorized Hacks 1 | . 1 . . . . Terminals . | . . . . . . Fabricators . | . . . . . . Repair Stations . | . . . . . . Recycling Units 1 | . 1 . . . . Tunnel 1 | . 1 . . . . Scanalyzers . | . . . . . . Garrison Access . | . . . . . . Data Cores Recovered . | . . . . . . Used . | . . . . . . Hacking Detections 2 | . 2 . . . . Full Trace Events . | . . . . . . Feedback Events . | . . . . . . Feedback Blocked . | . . . . . . Robot Schematics Acquired . | . . . . . . Robots Built . | . . . . . . Authchips . | . . . . . . Time . | . . . . . . Total Robot Build Rating . | . . . . . . Part Schematics Acquired . | . . . . . . Parts Built . | . . . . . . Authchips . | . . . . . . Time . | . . . . . . Total Part Build Rating . | . . . . . . Parts Repaired . | . . . . . . Time . | . . . . . . Parts Recycled . | . . . . . . Recycled Matter . | . . . . . . Retrieved Matter . | . . . . . . Retrieved Components . | . . . . . . Parts Scanalyzed . | . . . . . . Part Schematics Acquired . | . . . . . . Parts Damaged . | . . . . . . Bothacking | -11 -10 -10 -10 -9 -8 ------------ Run | Yrd Mat Min Exi Min Mat Used RIF Installer . | . . . . . . Robots Hacked . | . . . . . . Non-combat . | . . . . . . Combat . | . . . . . . Robot Hacks Applied . | . . . . . . Relay Couplers Released . | . . . . . . Fabnet Peak Effective % . | . . . . . . Robots Rewired . | . . . . . . Allies Hacked . | . . . . . . Hacks Repelled . | . . . . . . Allies | -11 -10 -10 -10 -9 -8 -------- Run | Yrd Mat Min Exi Min Mat Total Allies 4 | . . 1 . 3 . Largest Group 3 | . . 1 . 3 . Highest-Rated Group 40 | . . 31 . 40 . Highest-Rated Ally 31 | . . 31 . 16 . Total Orders . | . . . . . . Ally Attacks 10 | . . 10 . . . Total Damage 169 | . . 169 . . . Kills 2 | . . 2 . . . Allies Corrupted . | . . . . . . Allies Melted . | . . . . . . Intel | -11 -10 -10 -10 -9 -8 ------- Run | Yrd Mat Min Exi Min Mat Robot Analysis Total . | . . . . . . Derelict Logs Recovered 2 | . . 1 . 1 . Drone Launches . | . . . . . . Drone Recoveries . | . . . . . . Exploration | -11 -10 -10 -10 -9 -8 ------------- Run | Yrd Mat Min Exi Min Mat Turns Passed 4325 | 112 294 1218 1121 1580 . Spaces Moved 1985 | 66 203 624 495 597 . Core 12 | 12 . . . . . Treads 462 | . . . . 462 . Legs 1511 | 54 203 624 495 135 . Wheels . | . . . . . . Hover . | . . . . . . Flight . | . . . . . . Fastest Speed 50 | 50 120 120 190 240 . Average Speed 199 | 128 120 170 225 244 . Slowest Speed 260 | 200 120 260 260 260 . Overloaded Moves . | . . . . . . Propulsion Burnouts . | . . . . . . Robots Hopped . | . . . . . . Cave-ins Triggered . | . . . . . . Exploration Rate (%) 54 | 4 46 98 81 99 1 Regions Visited 5 Branch Regions 3 Pre-discovered Areas 2 | . 1 . . 1 . Known Exits Taken . | . . . . . . Unknown Exits Taken 5 | 1 1 1 1 1 . Scrap Searched 4 | . . 2 . 2 . Spaces Dug . | . . . . . . Terrain Destroyed 11 | . . . . 11 . Melee . | . . . . . . Projectile 11 | . . . . 11 . AOE . | . . . . . . Terrain Rammed . | . . . . . . Walls Destroyed . | . . . . . . Machines Disabled . | . . . . . . Actions | -11 -10 -10 -10 -9 -8 --------- Run | Yrd Mat Min Exi Min Mat Total 2229 | 91 238 743 501 656 . Wait 126 | 11 22 81 . 12 . Move 1980 | 65 202 623 494 596 . Hop . | . . . . . . Pick Up 33 | 9 4 8 5 7 . Fast Attach 7 | 3 . 2 . 2 . Attach 6 | 3 1 2 . . . Detach . | . . . . . . Swap 7 | . . 1 1 5 . Drop 11 | . 1 6 1 3 . Fire 57 | . 8 20 . 29 . Melee . | . . . . . . Ram . | . . . . . . Kick . | . . . . . . Crush 2 | . . . . 2 . Escape Stasis . | . . . . . . Rewire . | . . . . . . Trap . | . . . . . . Miscellaneous . | . . . . . . Route ------- -11/Scrapyard -10/Materials (discovered 2 exits: [*Mat] / [*Min]) -10/Mines (discovered 3 exits: [*Mat x2] / [*Exi]) -10/Exiles -9/Mines (discovered 2 exits: [*Mat x2]) -8/Materials History --------- Turn | Location | Event 19 | -11/Scrapyard | Discovered new exit (range 16) 113 | -11/Scrapyard | Entered Materials 317 | -10/Materials | Build established: Mutant 331 | -10/Materials | Discovered new exit (range 6) 377 | -10/Materials | Discovered new exit (range 14) 407 | -10/Materials | Entered Mines 600 | -10/Mines | A weapon hastily lodged in a ceiling crevice suddenly fell to the ground 662 | -10/Mines | Discovered new exit (range 9) 776 | -10/Mines | Lost 3 parts (2n1w) 874 | -10/Mines | Deemed a non-threat by the Exiles lab entrance 874 | -10/Mines | Discovered new exit (range 5) 984 | -10/Mines | Received a Mining Laser from a helpful Derelict 1239 | -10/Mines | Learned 2 Materials zone layouts 1267 | -10/Mines | Discovered new exit (range 14) 1625 | -10/Mines | Entered Exiles 1671 | -10/Exiles | Met 8R-AWN 1705 | -10/Exiles | Met EX-HEX 1795 | -10/Exiles | Met EX-DEC 1830 | -10/Exiles | Visited The Gauntlet 2372 | -10/Exiles | Discovered new exit (range 15) 2551 | -10/Exiles | Met EX-BIN 2746 | -10/Exiles | Entered Mines 2784 | -9/Mines | Met a Derelict bent on vengeance 3252 | -9/Mines | Core integrity fell below 50% 3468 | -9/Mines | Discovered new exit (range 8) 3683 | -9/Mines | Discovered new exit (range 8) 3695 | -9/Mines | Assisted by bots powering up and referring to "LRC-V3" 4326 | -9/Mines | Entered Materials 4326 | -8/Materials | Accompanied by 3 allies 4326 | -8/Materials | Evolved 4 slots: Propulsion x2, Utility x2 4326 | -8/Materials | Self-destructed Last Messages --------------- 03696_ Acquired 28 matter. 03697_ Acquired 26 matter. 03904_ Acquired Lgt. Treads. 03905_ Dropped Imp. Heat Sink. 03913_ Acquired Med. Armor Plating. 03914_ Dropped Aluminum Leg. 03920_ Acquired Lgt. Treads. 03921_ Acquired 21 matter. 03926_ Acquired Lgt. Treads. 03961_ A derelict is hurriedly installing traps. 03963_ BY-5WJ(g): "Hehe, this'll put a wrench in their mining defense operations..." 03963_ BY-5WJ(g) slips into the shadows. 04264_ N3-NOJ(g): "WHERE ARE YOU, UNAWARE TRASH?! VENGEANCE UPON YOU!" 04275_ N3-NOJ(g): "UNAWARE KILLED MY BEST FRIEND! VENGEANCE!" PARAMETERS=PROPULSION+2,UTILITY+2 LOCATION=UNKNOWN GOAL=ESCAPE Map ----- +----------------------------------------------------+ | ????????????????????????????????? | | ????????????????????????????????? | | ????????????????????????????????? | | ????????????????????????????????? | | ????????????????????????????????? | | ????????????????????????????????? | | ????????????????????????????????? | | ????????????????????????????????? | | ????????????????????????????????? | | ????????????????????????????????? | | ????????????????????????????????? | | ????????????????????????????????? | | ????????????????????????????????? | | ????????????????????????????????? | | ????????????????????????????????? | | ????????????????????????????????? | | ????????????????????????????????? | | ????????????????????????????????? | | ?????????????????? ?????????????? | | ???????????????? ""???????????? | | ??????????????? ""???????????? | | ?????????????"" """ ?????????? | | ???????????? ?????????? | | ??????#####g ????????? | | ??????# ????????? | | ??????# @ g ! ????????? | | ??????# ????????? | | ??????######+########???????????? | | ????????????????????????????????? | | ????????????????????????????????? | | ????????????????????????????????? | | ????????????????????????????????? | | ????????????????????????????????? | | ????????????????????????????????? | | ????????????????????????????????? | | ????????????????????????????????? | | ????????????????????????????????? | | ????????????????????????????????? | | ????????????????????????????????? | | ????????????????????????????????? | | ????????????????????????????????? | | ????????????????????????????????? | | ????????????????????????????????? | | ????????????????????????????????? | | ????????????????????????????????? | | ????????????????????????????????? | | ????????????????????????????????? | | ????????????????????????????????? | | ????????????????????????????????? | | ????????????????????????????????? | +----------------------------------------------------+ Best States ------------- Heat Dissipation 39 Energy Generation 10 Energy Capacity 250 Matter Stores 300 Matter Capacity 300 Sight Range 16 Robot Scan Range 14 Terrain Scan Density 10 Armor Coverage 225 Evasion (%) 55 Recoil Reduction 2 Item Schematics ----------------- None Robot Schematics ------------------ None Fabricated ------------ Nothing Alien Tech Used ----------------- None Achievements -------------- None Challenges ------------ None Game ------ Seed ActiveSensorBrace Manual? 0 Play Time 00:15:42 Cumulative 274.6 hours Start 2024.05.02 @ 05:15:54 End 2024.05.02 @ 05:48:36 Sessions 1 Manual Loads 0 Difficulty Rogue Special Mode None Game No. 72 Rogue 72 Adventurer 0 Explorer 0 Win Type - Total 16 Types 8/3/3/1/1/0/0/0/0 Lore% 56 Gallery% 78 Achievement% 69 Wizard Run 0 Options --------- Layout 1 ASCII 0 Keyboard 0 Movement Numpad Keybinds 0 Fullscreen 1 Font 24/Smallcaps Map View 50x35 Zoom Use 4% Tactical HUD 1 Map Filters NONE Filters NONE Steam 1 RUN: ae88682d-9bab-4302-8ced-658ba7b887e6